[Event "*** SCC Grand Prix: Titled Tuesday Blitz"]
[Site "Chess.com"]
[Date "2020.06.02"]
[Round "9"]
[White "ajdemipopushi"]
[Black "MomchilPetkov"]
[Result "0-1"]
[WhiteElo "2337"]
[BlackElo "2544"]
[TimeControl "180+1"]
[EndTime "11:46:26 PDT"]
[Termination "MomchilPetkov won by checkmate"]

1. Nf3 {[%clk 0:03:00.9]} 1... Nf6 {[%clk 0:02:59.8]} 2. g3 {[%clk 0:03:01.4]}
2... d5 {[%clk 0:02:59]} 3. c4 {[%clk 0:03:00.9]} 3... c6 {[%clk 0:02:58.9]} 4.
Bg2 {[%clk 0:03:01.3]} 4... Bf5 {[%clk 0:02:58.4]} 5. cxd5 {[%clk 0:03:01.3]}
5... cxd5 {[%clk 0:02:58.4]} 6. Qb3 {[%clk 0:03:01.6]} 6... Nc6 {[%clk
0:02:57.3]} 7. Nc3 {[%clk 0:03:00.4]} 7... e5 {[%clk 0:02:53.8]} 8. O-O {[%clk
0:03:00.5]} 8... Be7 {[%clk 0:02:31]} 9. Qxb7 {[%clk 0:02:52.4]} 9... Bd7 {[%clk
0:02:29.8]} 10. Qb3 {[%clk 0:02:08.4]} 10... Rb8 {[%clk 0:02:27.8]} 11. Qd1
{[%clk 0:02:06.5]} 11... d4 {[%clk 0:02:26]} 12. Nb1 {[%clk 0:02:03.7]} 12... e4
{[%clk 0:02:08.6]} 13. Ne1 {[%clk 0:02:03.2]} 13... h5 {[%clk 0:02:00.7]} 14. d3
{[%clk 0:01:54.3]} 14... h4 {[%clk 0:01:34.8]} 15. dxe4 {[%clk 0:01:53.3]} 15...
hxg3 {[%clk 0:01:35.1]} 16. hxg3 {[%clk 0:01:50]} 16... Qa5 {[%clk 0:01:30.5]}
17. e3 {[%clk 0:01:30]} 17... Bg4 {[%clk 0:01:01.5]} 18. f3 {[%clk 0:01:24]}
18... Qh5 {[%clk 0:00:50.2]} 19. Qa4 {[%clk 0:00:48.2]} 19... Bd7 {[%clk
0:00:36.2]} 20. exd4 {[%clk 0:00:37.7]} 20... Nxd4 {[%clk 0:00:33]} 21. Qd1
{[%clk 0:00:31.9]} 21... Nxe4 {[%clk 0:00:25.4]} 22. Rf2 {[%clk 0:00:10.4]}
22... Qh2+ {[%clk 0:00:22.8]} 23. Kf1 {[%clk 0:00:10.4]} 23... Nxg3# {[%clk
0:00:23.7]} 0-1

[Event "*** SCC Grand Prix: Titled Tuesday Blitz"]
[Site "Chess.com"]
[Date "2020.06.02"]
[Round "9"]
[White "allvim"]
[Black "KejJaj"]
[Result "1/2-1/2"]
[WhiteElo "2302"]
[BlackElo "2085"]
[TimeControl "180+1"]
[EndTime "11:46:26 PDT"]
[Termination "Game drawn by repetition"]

1. e4 {[%clk 0:03:00.9]} 1... c5 {[%clk 0:02:59.7]} 2. Nf3 {[%clk 0:03:01]} 2...
d6 {[%clk 0:03:00.1]} 3. d4 {[%clk 0:03:01.4]} 3... cxd4 {[%clk 0:03:01]} 4.
Nxd4 {[%clk 0:03:02.3]} 4... Nf6 {[%clk 0:03:00.5]} 5. Nc3 {[%clk 0:03:02.9]}
5... g6 {[%clk 0:03:00.7]} 6. Be3 {[%clk 0:03:02.4]} 6... Bg7 {[%clk 0:03:00.6]}
7. Bc4 {[%clk 0:03:03]} 7... O-O {[%clk 0:03:00.1]} 8. f3 {[%clk 0:03:03.4]}
8... Nc6 {[%clk 0:02:59.8]} 9. Bb3 {[%clk 0:03:03.9]} 9... Nd7 {[%clk
0:02:57.6]} 10. Qd2 {[%clk 0:03:02.2]} 10... Nb6 {[%clk 0:02:56.9]} 11. O-O-O
{[%clk 0:03:01.7]} 11... Na5 {[%clk 0:02:56.6]} 12. h4 {[%clk 0:02:56.2]} 12...
Nbc4 {[%clk 0:02:55.5]} 13. Qf2 {[%clk 0:02:54.7]} 13... Nxe3 {[%clk 0:02:54.9]}
14. Qxe3 {[%clk 0:02:54.8]} 14... Nxb3+ {[%clk 0:02:51.4]} 15. Nxb3 {[%clk
0:02:52.8]} 15... a5 {[%clk 0:02:51]} 16. a4 {[%clk 0:02:50]} 16... Bd7 {[%clk
0:02:38.8]} 17. h5 {[%clk 0:02:49.1]} 17... b5 {[%clk 0:02:32.8]} 18. hxg6
{[%clk 0:02:40.6]} 18... hxg6 {[%clk 0:02:32.5]} 19. Qg5 {[%clk 0:02:15.9]}
19... bxa4 {[%clk 0:02:24]} 20. Qh4 {[%clk 0:02:15.8]} 20... Re8 {[%clk
0:02:18]} 21. Nd4 {[%clk 0:02:03.5]} 21... a3 {[%clk 0:02:09.9]} 22. Rh2 {[%clk
0:01:04.3]} 22... axb2+ {[%clk 0:02:08.2]} 23. Kb1 {[%clk 0:01:04.3]} 23... e5
{[%clk 0:01:52.6]} 24. Qh7+ {[%clk 0:00:59.7]} 24... Kf8 {[%clk 0:01:51.5]} 25.
Rdh1 {[%clk 0:00:34.5]} 25... exd4 {[%clk 0:01:44.1]} 26. Nd5 {[%clk 0:00:34.8]}
26... g5 {[%clk 0:00:59.6]} 27. Qxg7+ {[%clk 0:00:30.8]} 27... Kxg7 {[%clk
0:01:00.5]} 28. Rh7+ {[%clk 0:00:31.1]} 28... Kg8 {[%clk 0:00:57.1]} 29. Rh8+
{[%clk 0:00:13]} 29... Kg7 {[%clk 0:00:56.9]} 30. R1h7+ {[%clk 0:00:12]} 30...
Kg6 {[%clk 0:00:56.6]} 31. Rh6+ {[%clk 0:00:11.7]} 31... Kg7 {[%clk 0:00:56.6]}
32. R8h7+ {[%clk 0:00:10.4]} 32... Kg8 {[%clk 0:00:56.5]} 33. Rh8+ {[%clk
0:00:03]} 33... Kg7 {[%clk 0:00:56.5]} 34. R8h7+ {[%clk 0:00:03.7]} 34... Kg8
{[%clk 0:00:56.5]} 35. Rh8+ {[%clk 0:00:04.4]} 35... Kg7 {[%clk 0:00:56.6]}
1/2-1/2

[Event "*** SCC Grand Prix: Titled Tuesday Blitz"]
[Site "Chess.com"]
[Date "2020.06.02"]
[Round "9"]
[White "KaterynaLagno"]
[Black "Vesper2018"]
[Result "0-1"]
[WhiteElo "2663"]
[BlackElo "2403"]
[TimeControl "180+1"]
[EndTime "11:46:27 PDT"]
[Termination "Vesper2018 won by resignation"]

1. e4 {[%clk 0:03:00.9]} 1... c5 {[%clk 0:02:59.9]} 2. Nf3 {[%clk 0:03:00.7]}
2... d6 {[%clk 0:03:00.2]} 3. Bb5+ {[%clk 0:03:01.2]} 3... Bd7 {[%clk
0:03:00.1]} 4. Bxd7+ {[%clk 0:03:01.6]} 4... Nxd7 {[%clk 0:03:00.3]} 5. O-O
{[%clk 0:02:58.4]} 5... Ngf6 {[%clk 0:02:58.2]} 6. Qe2 {[%clk 0:02:57.3]} 6...
g6 {[%clk 0:02:56.8]} 7. c3 {[%clk 0:02:55.8]} 7... Bg7 {[%clk 0:02:56.3]} 8. d4
{[%clk 0:02:55.4]} 8... e5 {[%clk 0:02:43.9]} 9. Rd1 {[%clk 0:02:51.3]} 9... Qe7
{[%clk 0:02:38.6]} 10. dxe5 {[%clk 0:02:47.6]} 10... dxe5 {[%clk 0:02:33.9]} 11.
Na3 {[%clk 0:02:46.5]} 11... O-O {[%clk 0:02:33.4]} 12. Nc4 {[%clk 0:02:46.1]}
12... Rad8 {[%clk 0:02:30.5]} 13. a4 {[%clk 0:02:43.8]} 13... Nb8 {[%clk
0:02:28.5]} 14. Rxd8 {[%clk 0:02:18.8]} 14... Rxd8 {[%clk 0:02:28]} 15. Bg5
{[%clk 0:02:19.2]} 15... Nc6 {[%clk 0:02:26.4]} 16. Rd1 {[%clk 0:02:17.5]} 16...
h6 {[%clk 0:02:20.2]} 17. Bxf6 {[%clk 0:02:14.9]} 17... Bxf6 {[%clk 0:02:18.4]}
18. Rd5 {[%clk 0:02:13.9]} 18... b6 {[%clk 0:02:06.7]} 19. Ne3 {[%clk
0:02:09.5]} 19... h5 {[%clk 0:01:53]} 20. g3 {[%clk 0:02:07.6]} 20... Kg7 {[%clk
0:01:47.5]} 21. h4 {[%clk 0:02:05.1]} 21... Qc7 {[%clk 0:01:45.8]} 22. Rxd8
{[%clk 0:01:56.6]} 22... Qxd8 {[%clk 0:01:44.1]} 23. Nd5 {[%clk 0:01:55.7]}
23... Ne7 {[%clk 0:01:38]} 24. Nxf6 {[%clk 0:01:42.1]} 24... Kxf6 {[%clk
0:01:38]} 25. Ng5 {[%clk 0:01:42.7]} 25... Kg7 {[%clk 0:01:36.4]} 26. Qc4 {[%clk
0:01:42.4]} 26... Qe8 {[%clk 0:01:33.8]} 27. a5 {[%clk 0:01:37.2]} 27... f6
{[%clk 0:01:25.5]} 28. Ne6+ {[%clk 0:01:36]} 28... Kh6 {[%clk 0:01:21.5]} 29. a6
{[%clk 0:01:33.3]} 29... Qf7 {[%clk 0:00:56.9]} 30. Qb3 {[%clk 0:01:26.3]} 30...
Qg8 {[%clk 0:00:47.7]} 31. Kg2 {[%clk 0:01:17.9]} 31... f5 {[%clk 0:00:41.9]}
32. exf5 {[%clk 0:01:14.1]} 32... gxf5 {[%clk 0:00:41.9]} 33. Qc4 {[%clk
0:00:47.2]} 33... f4 {[%clk 0:00:36.7]} 34. b3 {[%clk 0:00:39.9]} 34... fxg3
{[%clk 0:00:36.3]} 35. fxg3 {[%clk 0:00:38.8]} 35... Nf5 {[%clk 0:00:36]} 36.
Ng5 {[%clk 0:00:31.8]} 36... Ne3+ {[%clk 0:00:35.2]} 0-1

[Event "*** SCC Grand Prix: Titled Tuesday Blitz"]
[Site "Chess.com"]
[Date "2020.06.02"]
[Round "9"]
[White "qqwow"]
[Black "freshfoodcompany"]
[Result "1-0"]
[WhiteElo "2360"]
[BlackElo "2208"]
[TimeControl "180+1"]
[EndTime "11:46:31 PDT"]
[Termination "qqwow won by resignation"]

1. d4 {[%clk 0:03:00.9]} 1... d5 {[%clk 0:02:59.9]} 2. Bg5 {[%clk 0:03:00.4]}
2... Nf6 {[%clk 0:02:55.5]} 3. Nd2 {[%clk 0:02:59.5]} 3... e6 {[%clk 0:02:53]}
4. e3 {[%clk 0:02:59.6]} 4... Be7 {[%clk 0:02:52.5]} 5. Bd3 {[%clk 0:02:58]}
5... h6 {[%clk 0:02:51.6]} 6. Bf4 {[%clk 0:02:57.4]} 6... O-O {[%clk 0:02:49.1]}
7. h3 {[%clk 0:02:56.6]} 7... c5 {[%clk 0:02:47]} 8. c3 {[%clk 0:02:55.4]} 8...
Nc6 {[%clk 0:02:46.3]} 9. Ngf3 {[%clk 0:02:56]} 9... Bd6 {[%clk 0:02:42.4]} 10.
Bxd6 {[%clk 0:02:45.3]} 10... Qxd6 {[%clk 0:02:40]} 11. Qe2 {[%clk 0:02:46.2]}
11... e5 {[%clk 0:02:36.2]} 12. dxc5 {[%clk 0:02:45.9]} 12... Qxc5 {[%clk
0:02:34.9]} 13. e4 {[%clk 0:02:46.5]} 13... d4 {[%clk 0:02:28.7]} 14. cxd4
{[%clk 0:02:44.4]} 14... Nxd4 {[%clk 0:02:27.2]} 15. Nxd4 {[%clk 0:02:44.4]}
15... Qxd4 {[%clk 0:02:27]} 16. Nf3 {[%clk 0:02:30.2]} 16... Qb4+ {[%clk
0:02:18.1]} 17. Qd2 {[%clk 0:02:30.6]} 17... Qb6 {[%clk 0:01:47.6]} 18. O-O
{[%clk 0:02:26.3]} 18... Rd8 {[%clk 0:01:42.8]} 19. Qc3 {[%clk 0:02:19.6]} 19...
Be6 {[%clk 0:01:30.5]} 20. Qa3 {[%clk 0:01:46.9]} 20... Rac8 {[%clk 0:01:16.8]}
21. Rac1 {[%clk 0:01:46.7]} 21... Nh5 {[%clk 0:00:53.6]} 22. Rxc8 {[%clk
0:01:42.7]} 22... Bxc8 {[%clk 0:00:51.1]} 23. Rc1 {[%clk 0:01:32.9]} 23... Qg6
{[%clk 0:00:41.5]} 24. Qe7 {[%clk 0:01:16.1]} 24... Qf6 {[%clk 0:00:17.1]} 25.
Qxe5 {[%clk 0:01:06.3]} 25... Qxe5 {[%clk 0:00:16.2]} 26. Nxe5 {[%clk
0:01:06.8]} 26... f6 {[%clk 0:00:14.6]} 27. Bc4+ {[%clk 0:01:06.6]} 27... Kh7
{[%clk 0:00:14]} 28. Nf3 {[%clk 0:01:01.3]} 28... Nf4 {[%clk 0:00:13.1]} 29. Bf1
{[%clk 0:00:55.6]} 29... Be6 {[%clk 0:00:12.2]} 30. a3 {[%clk 0:00:55]} 30...
Rc8 {[%clk 0:00:11.2]} 31. Rxc8 {[%clk 0:00:48.3]} 31... Bxc8 {[%clk 0:00:11]}
32. e5 {[%clk 0:00:47.4]} 32... fxe5 {[%clk 0:00:08.7]} 33. Nxe5 {[%clk
0:00:48.3]} 33... Ng6 {[%clk 0:00:07.2]} 34. Bd3 {[%clk 0:00:47.3]} 1-0

[Event "*** SCC Grand Prix: Titled Tuesday Blitz"]
[Site "Chess.com"]
[Date "2020.06.02"]
[Round "9"]
[White "Funkmaus"]
[Black "Stronger1799"]
[Result "1-0"]
[WhiteElo "2207"]
[BlackElo "2314"]
[TimeControl "180+1"]
[EndTime "11:46:32 PDT"]
[Termination "Funkmaus won by checkmate"]

1. d4 {[%clk 0:03:00.9]} 1... Nf6 {[%clk 0:02:40.7]} 2. Nf3 {[%clk 0:02:59.5]}
2... g6 {[%clk 0:02:40]} 3. g3 {[%clk 0:03:00.1]} 3... Bg7 {[%clk 0:02:39.8]} 4.
Bg2 {[%clk 0:03:00.8]} 4... O-O {[%clk 0:02:37.2]} 5. O-O {[%clk 0:03:01.4]}
5... d5 {[%clk 0:02:24.6]} 6. c4 {[%clk 0:03:01.3]} 6... Nc6 {[%clk 0:02:19.1]}
7. cxd5 {[%clk 0:03:02.2]} 7... Nxd5 {[%clk 0:02:18.7]} 8. e4 {[%clk 0:02:56.3]}
8... Nb6 {[%clk 0:02:18.2]} 9. Be3 {[%clk 0:02:50.5]} 9... Nc4 {[%clk
0:02:17.8]} 10. Nc3 {[%clk 0:02:26.6]} 10... Bg4 {[%clk 0:01:55.8]} 11. Qe2
{[%clk 0:02:08]} 11... Bxf3 {[%clk 0:01:25.1]} 12. Qxc4 {[%clk 0:02:02.1]} 12...
Nxd4 {[%clk 0:00:53.1]} 13. Bxd4 {[%clk 0:01:54.8]} 13... Bxg2 {[%clk
0:00:53.2]} 14. Bxg7 {[%clk 0:01:38.5]} 14... Bxf1 {[%clk 0:00:52.8]} 15. Rxf1
{[%clk 0:01:33.4]} 15... Kxg7 {[%clk 0:00:52.5]} 16. Rd1 {[%clk 0:01:29]} 16...
Qe8 {[%clk 0:00:51.4]} 17. Qxc7 {[%clk 0:01:26.1]} 17... b6 {[%clk 0:00:20.5]}
18. Nd5 {[%clk 0:01:18.9]} 18... e6 {[%clk 0:00:17.6]} 19. Qc3+ {[%clk
0:01:08.7]} 19... f6 {[%clk 0:00:06]} 20. Nc7 {[%clk 0:01:07.9]} 20... Qe7
{[%clk 0:00:04]} 21. Nxa8 {[%clk 0:01:05.1]} 21... Rxa8 {[%clk 0:00:04.2]} 22.
Qc6 {[%clk 0:00:59.9]} 22... Rd8 {[%clk 0:00:04.4]} 23. Rxd8 {[%clk 0:00:57.9]}
23... Qxd8 {[%clk 0:00:05.3]} 24. Qxe6 {[%clk 0:00:55.5]} 24... Qd1+ {[%clk
0:00:04.9]} 25. Kg2 {[%clk 0:00:55.2]} 25... Qc2 {[%clk 0:00:04.2]} 26. b4
{[%clk 0:00:51.4]} 26... b5 {[%clk 0:00:02.9]} 27. h4 {[%clk 0:00:47.2]} 27...
Kh6 {[%clk 0:00:02.6]} 28. h5 {[%clk 0:00:41]} 28... Kxh5 {[%clk 0:00:01.4]} 29.
Qh3+ {[%clk 0:00:41]} 29... Kg5 {[%clk 0:00:01.9]} 30. Qh4# {[%clk 0:00:40.6]}
1-0

[Event "*** SCC Grand Prix: Titled Tuesday Blitz"]
[Site "Chess.com"]
[Date "2020.06.02"]
[Round "9"]
[White "Gajuchess"]
[Black "stolencandy13"]
[Result "1-0"]
[WhiteElo "2759"]
[BlackElo "2568"]
[TimeControl "180+1"]
[EndTime "11:46:33 PDT"]
[Termination "Gajuchess won by checkmate"]

1. e4 {[%clk 0:02:55.1]} 1... c6 {[%clk 0:02:59.2]} 2. d4 {[%clk 0:02:52]} 2...
d5 {[%clk 0:03:00.1]} 3. e5 {[%clk 0:02:51.3]} 3... Bf5 {[%clk 0:02:59.7]} 4. h4
{[%clk 0:02:52]} 4... h5 {[%clk 0:02:59.5]} 5. Bd3 {[%clk 0:02:51.5]} 5... Bxd3
{[%clk 0:03:00.1]} 6. Qxd3 {[%clk 0:02:52.4]} 6... e6 {[%clk 0:03:00.6]} 7. Bg5
{[%clk 0:02:52.3]} 7... Qb6 {[%clk 0:03:00.4]} 8. Nd2 {[%clk 0:02:52.6]} 8...
Ne7 {[%clk 0:03:00.8]} 9. Ngf3 {[%clk 0:02:51]} 9... Nf5 {[%clk 0:02:40.4]} 10.
O-O {[%clk 0:02:49.7]} 10... Qa6 {[%clk 0:02:37.6]} 11. c4 {[%clk 0:02:48.4]}
11... Nd7 {[%clk 0:02:36.8]} 12. Qc2 {[%clk 0:02:36.3]} 12... Bb4 {[%clk
0:02:34]} 13. cxd5 {[%clk 0:02:28.8]} 13... cxd5 {[%clk 0:02:31.8]} 14. Rfc1
{[%clk 0:02:19.9]} 14... O-O {[%clk 0:02:29.1]} 15. Nf1 {[%clk 0:02:18.9]} 15...
Nb6 {[%clk 0:02:20.2]} 16. Ne3 {[%clk 0:02:17.9]} 16... Nxe3 {[%clk 0:02:19.5]}
17. Bxe3 {[%clk 0:02:16.1]} 17... Rac8 {[%clk 0:02:17.4]} 18. Qd1 {[%clk
0:02:02.9]} 18... Rxc1 {[%clk 0:02:15.7]} 19. Rxc1 {[%clk 0:02:03.8]} 19... Rc8
{[%clk 0:02:07.8]} 20. Rxc8+ {[%clk 0:02:01]} 20... Nxc8 {[%clk 0:02:08.7]} 21.
Ng5 {[%clk 0:01:58.3]} 21... g6 {[%clk 0:02:03.5]} 22. g4 {[%clk 0:01:38.5]}
22... hxg4 {[%clk 0:01:57.5]} 23. Qxg4 {[%clk 0:01:39.4]} 23... Qxa2 {[%clk
0:01:55.1]} 24. Nxe6 {[%clk 0:01:33.2]} 24... Ne7 {[%clk 0:01:44.9]} 25. Nf4
{[%clk 0:01:25.7]} 25... Qxb2 {[%clk 0:01:37.9]} 26. Qd7 {[%clk 0:01:09.3]}
26... Qb1+ {[%clk 0:01:26.3]} 27. Kh2 {[%clk 0:01:09.1]} 27... Nf5 {[%clk
0:01:13.5]} 28. e6 {[%clk 0:00:58.6]} 28... Nh6 {[%clk 0:00:52.6]} 29. exf7+
{[%clk 0:00:48.9]} 29... Nxf7 {[%clk 0:00:48.3]} 30. Qe8+ {[%clk 0:00:45.3]}
30... Kg7 {[%clk 0:00:38.2]} 31. Ne6+ {[%clk 0:00:43.3]} 31... Kf6 {[%clk
0:00:37]} 32. Bg5+ {[%clk 0:00:22.3]} 32... Nxg5 {[%clk 0:00:36.1]} 33. hxg5+
{[%clk 0:00:23.2]} 33... Kf5 {[%clk 0:00:34.5]} 34. Qf7+ {[%clk 0:00:23.7]}
34... Kg4 {[%clk 0:00:28.9]} 35. Qf4+ {[%clk 0:00:22.4]} 35... Kh5 {[%clk
0:00:29]} 36. Ng7# {[%clk 0:00:23.3]} 1-0

[Event "*** SCC Grand Prix: Titled Tuesday Blitz"]
[Site "Chess.com"]
[Date "2020.06.02"]
[Round "9"]
[White "H16"]
[Black "Alexander_Donchenko"]
[Result "0-1"]
[WhiteElo "2521"]
[BlackElo "2693"]
[TimeControl "180+1"]
[EndTime "11:46:35 PDT"]
[Termination "Alexander_Donchenko won by resignation"]

1. d4 {[%clk 0:03:00.2]} 1... Nf6 {[%clk 0:02:59.4]} 2. c4 {[%clk 0:03:00.4]}
2... e6 {[%clk 0:02:59.9]} 3. Nf3 {[%clk 0:03:00.2]} 3... c5 {[%clk 0:03:00.3]}
4. d5 {[%clk 0:03:00]} 4... d6 {[%clk 0:03:00.9]} 5. Nc3 {[%clk 0:02:59.3]} 5...
exd5 {[%clk 0:03:01.4]} 6. cxd5 {[%clk 0:02:59.6]} 6... g6 {[%clk 0:03:01.3]} 7.
Bf4 {[%clk 0:02:59.9]} 7... Bg7 {[%clk 0:03:01.2]} 8. Qa4+ {[%clk 0:02:59.4]}
8... Bd7 {[%clk 0:03:01.4]} 9. Qb3 {[%clk 0:02:59.3]} 9... Qc7 {[%clk
0:03:01.6]} 10. e4 {[%clk 0:02:57.5]} 10... O-O {[%clk 0:03:01.8]} 11. Bd3
{[%clk 0:02:54.5]} 11... Na6 {[%clk 0:02:52.9]} 12. a3 {[%clk 0:02:30.4]} 12...
Rab8 {[%clk 0:02:51.4]} 13. O-O {[%clk 0:02:29.6]} 13... Rfe8 {[%clk 0:02:48.9]}
14. h3 {[%clk 0:02:16.1]} 14... b5 {[%clk 0:02:45.7]} 15. Nxb5 {[%clk
0:02:04.7]} 15... Bxb5 {[%clk 0:02:43.8]} 16. Bxb5 {[%clk 0:02:05.6]} 16... Rxe4
{[%clk 0:02:32.7]} 17. Bg5 {[%clk 0:01:51.6]} 17... c4 {[%clk 0:02:13.1]} 18.
Qc2 {[%clk 0:01:43.7]} 18... Rxb5 {[%clk 0:02:10.7]} 19. Bxf6 {[%clk 0:01:43.3]}
19... Re8 {[%clk 0:02:07.3]} 20. Bxg7 {[%clk 0:01:41.8]} 20... Kxg7 {[%clk
0:02:08.2]} 21. Rfe1 {[%clk 0:01:25.6]} 21... Rxe1+ {[%clk 0:01:49.8]} 22. Rxe1
{[%clk 0:01:26.5]} 22... Rb3 {[%clk 0:01:49.6]} 23. Nd2 {[%clk 0:01:18.3]} 23...
Rd3 {[%clk 0:01:48.4]} 24. Nxc4 {[%clk 0:01:12.8]} 24... Rxd5 {[%clk 0:01:46.5]}
25. Qc3+ {[%clk 0:00:53.2]} 25... f6 {[%clk 0:01:46.5]} 26. b4 {[%clk
0:00:48.4]} 26... Nb8 {[%clk 0:01:43.5]} 27. a4 {[%clk 0:00:24.1]} 27... Re5
{[%clk 0:01:40.8]} 28. Rd1 {[%clk 0:00:20.6]} 28... d5 {[%clk 0:01:37]} 29. Qd4
{[%clk 0:00:07.7]} 29... dxc4 {[%clk 0:01:34.6]} 30. b5 {[%clk 0:00:08.1]} 30...
Re7 {[%clk 0:01:33.2]} 31. Rc1 {[%clk 0:00:07.3]} 31... Rd7 {[%clk 0:01:30]} 32.
Qe3 {[%clk 0:00:04.3]} 32... Qe5 {[%clk 0:01:22.9]} 33. Qxe5 {[%clk 0:00:03.6]}
33... fxe5 {[%clk 0:01:23.8]} 34. Rxc4 {[%clk 0:00:04.1]} 34... Kf6 {[%clk
0:01:20.8]} 35. Kf1 {[%clk 0:00:04.4]} 35... Ke6 {[%clk 0:01:18.4]} 36. Rc8
{[%clk 0:00:04.7]} 36... Rb7 {[%clk 0:01:18]} 37. Rh8 {[%clk 0:00:04.9]} 37...
h5 {[%clk 0:01:16.8]} 38. Ke2 {[%clk 0:00:04.8]} 38... Nd7 {[%clk 0:01:16.7]}
39. Rg8 {[%clk 0:00:04.9]} 39... Kf7 {[%clk 0:01:14.6]} 40. Rc8 {[%clk
0:00:05.3]} 40... Nb6 {[%clk 0:01:13.7]} 41. Rc5 {[%clk 0:00:04.3]} 41... Nxa4
{[%clk 0:01:13.5]} 42. Rxe5 {[%clk 0:00:03.8]} 42... Rxb5 {[%clk 0:01:13.3]} 43.
Re3 {[%clk 0:00:02]} 43... Nb6 {[%clk 0:01:11.9]} 44. Kf3 {[%clk 0:00:02.4]}
44... a5 {[%clk 0:01:11.5]} 45. Ra3 {[%clk 0:00:02.9]} 0-1

[Event "*** SCC Grand Prix: Titled Tuesday Blitz"]
[Site "Chess.com"]
[Date "2020.06.02"]
[Round "9"]
[White "robertofabregas"]
[Black "CrazyMartian"]
[Result "1-0"]
[WhiteElo "2085"]
[BlackElo "2285"]
[TimeControl "180+1"]
[EndTime "11:46:36 PDT"]
[Termination "robertofabregas won by checkmate"]

1. d4 {[%clk 0:03:00.9]} 1... d5 {[%clk 0:02:55.7]} 2. Bf4 {[%clk 0:03:01]} 2...
Nf6 {[%clk 0:02:52.4]} 3. e3 {[%clk 0:03:01.3]} 3... c5 {[%clk 0:02:50.3]} 4. c3
{[%clk 0:02:54.4]} 4... Nc6 {[%clk 0:02:49.9]} 5. Nd2 {[%clk 0:02:54.5]} 5...
Bf5 {[%clk 0:02:48.2]} 6. Ngf3 {[%clk 0:02:54.8]} 6... Qb6 {[%clk 0:02:47.4]} 7.
dxc5 {[%clk 0:02:49.3]} 7... Qxb2 {[%clk 0:02:42.1]} 8. Nd4 {[%clk 0:02:48.3]}
8... Qxc3 {[%clk 0:02:32.8]} 9. Nxf5 {[%clk 0:02:43.8]} 9... Qxc5 {[%clk
0:02:29.8]} 10. Rc1 {[%clk 0:02:33.8]} 10... Qa5 {[%clk 0:02:23.6]} 11. Nd4
{[%clk 0:01:57.3]} 11... Nxd4 {[%clk 0:02:11]} 12. exd4 {[%clk 0:01:57.3]} 12...
e6 {[%clk 0:02:04.2]} 13. Bd3 {[%clk 0:01:57.6]} 13... Bb4 {[%clk 0:01:30.7]}
14. O-O {[%clk 0:01:50.8]} 14... O-O {[%clk 0:01:30.6]} 15. Rc7 {[%clk
0:01:25.9]} 15... e5 {[%clk 0:01:09.3]} 16. Bxe5 {[%clk 0:01:19.8]} 16... Bxd2
{[%clk 0:01:08.1]} 17. Rc5 {[%clk 0:01:08.7]} 17... Qb4 {[%clk 0:00:56.5]} 18.
Bxf6 {[%clk 0:01:05.1]} 18... gxf6 {[%clk 0:00:54.8]} 19. Qg4+ {[%clk
0:00:50.9]} 19... Bg5 {[%clk 0:00:30.6]} 20. Qf5 {[%clk 0:00:44.4]} 20... Rfe8
{[%clk 0:00:17.5]} 21. Qxh7+ {[%clk 0:00:32.8]} 21... Kf8 {[%clk 0:00:17.3]} 22.
Rc7 {[%clk 0:00:23.7]} 22... Re4 {[%clk 0:00:02.8]} 23. Qxf7# {[%clk 0:00:21.7]}
1-0

[Event "*** SCC Grand Prix: Titled Tuesday Blitz"]
[Site "Chess.com"]
[Date "2020.06.02"]
[Round "9"]
[White "Ave_Mariia"]
[Black "Girkassa"]
[Result "0-1"]
[WhiteElo "2321"]
[BlackElo "2545"]
[TimeControl "180+1"]
[EndTime "11:46:42 PDT"]
[Termination "Girkassa won by checkmate"]

1. c4 {[%clk 0:03:00.9]} 1... e6 {[%clk 0:02:57.8]} 2. g3 {[%clk 0:02:59.9]}
2... d5 {[%clk 0:02:57.5]} 3. Nf3 {[%clk 0:03:00]} 3... Nf6 {[%clk 0:02:57.6]}
4. Bg2 {[%clk 0:03:00.3]} 4... Be7 {[%clk 0:02:56.4]} 5. O-O {[%clk 0:03:00.2]}
5... O-O {[%clk 0:02:56.5]} 6. d4 {[%clk 0:03:00.5]} 6... dxc4 {[%clk
0:02:55.9]} 7. Qc2 {[%clk 0:02:58.9]} 7... a6 {[%clk 0:02:54.9]} 8. a4 {[%clk
0:02:57.9]} 8... Bd7 {[%clk 0:02:54]} 9. Qxc4 {[%clk 0:02:57]} 9... Bc6 {[%clk
0:02:53.9]} 10. Bf4 {[%clk 0:02:54.2]} 10... a5 {[%clk 0:02:49.4]} 11. Rd1
{[%clk 0:02:51.7]} 11... Na6 {[%clk 0:02:49]} 12. Nc3 {[%clk 0:02:45.9]} 12...
Nb4 {[%clk 0:02:44.6]} 13. Ne5 {[%clk 0:02:33.4]} 13... Bxg2 {[%clk 0:02:41.5]}
14. Kxg2 {[%clk 0:02:34.3]} 14... Nfd5 {[%clk 0:02:32.8]} 15. Nxd5 {[%clk
0:02:34.3]} 15... exd5 {[%clk 0:02:30.1]} 16. Qc3 {[%clk 0:02:10.3]} 16... Rc8
{[%clk 0:02:26.4]} 17. Nd3 {[%clk 0:01:56.3]} 17... Qd7 {[%clk 0:01:58.7]} 18.
Nc5 {[%clk 0:01:41.2]} 18... Qc6 {[%clk 0:01:58.5]} 19. f3 {[%clk 0:01:08.2]}
19... Rfe8 {[%clk 0:01:57.1]} 20. Rac1 {[%clk 0:01:00.4]} 20... Na2 {[%clk
0:01:51.2]} 21. Qxa5 {[%clk 0:00:52.5]} 21... Nxc1 {[%clk 0:01:49]} 22. Rxc1
{[%clk 0:00:52]} 22... b6 {[%clk 0:01:44.9]} 23. Qa6 {[%clk 0:00:44.1]} 23...
Ra8 {[%clk 0:01:37.4]} 24. Qb7 {[%clk 0:00:41.2]} 24... Qf6 {[%clk 0:01:13.7]}
25. Nb3 {[%clk 0:00:33.5]} 25... Bd6 {[%clk 0:01:13.4]} 26. Bxd6 {[%clk
0:00:30.4]} 26... Qxd6 {[%clk 0:00:58.3]} 27. Rc2 {[%clk 0:00:18.5]} 27... Rxa4
{[%clk 0:00:54.7]} 28. e4 {[%clk 0:00:17.8]} 28... dxe4 {[%clk 0:00:52.8]} 29.
fxe4 {[%clk 0:00:18.1]} 29... c5 {[%clk 0:00:47.5]} 30. dxc5 {[%clk 0:00:15]}
30... Qd3 {[%clk 0:00:39.2]} 31. Rc3 {[%clk 0:00:12.2]} 31... Qe2+ {[%clk
0:00:38.6]} 32. Kh3 {[%clk 0:00:11.6]} 32... Raxe4 {[%clk 0:00:36]} 33. c6
{[%clk 0:00:06.8]} 33... Qf1# {[%clk 0:00:34.8]} 0-1